bitfinex-derivatives/quotes_ETHF0:USTF0_20240917
["timestamp","ask_amount","ask_price","bid_price","bid_amount"]
[1726581257711,3.2078,2307.3,2306.9,0.43345]
[1726581258008,3.33,2307.5,2307.1,0.43341]
[1726581258205,0.43334,2307.5,2307.3,0.43337]
[1726581258413,3.2078,2307.6,2307.1,3.2078]
[1726581258706,3.64113,2307.6,2307.4,0.43335]
[1726581258897,3.2078,2307.6,2307.2,0.8742]
[1726581259408,4.29126,2307.3,2306.6,4.092]
[1726581259706,0.43352,2306.6,2306.4,0.43355]
[1726581259914,3.64126,2306.9,2306.7,0.43348]
[1726581260113,3.2078,2306.9,2306.4,0.8577]
[1726581260410,0.43352,2306.6,2306.3,3.2078]
[1726581260610,3.33,2306.8,2306.3,3.2078]
[1726581260799,0.43348,2306.8,2306.3,3.2078]
[1726581261005,0.43349,2306.8,2306.6,0.43351]
[1726581261300,7.62148,2306.9,2306.3,3.2078]
[1726581261509,0.4335,2306.7,2306.3,3.2078]
[1726581261705,6.5378,2306.9,2306.3,3.2078]
[1726581261706,3.2078,2306.9,2306.4,1.08388]
[1726581262009,0.43346,2306.9,2306.8,0.43347]
[1726581262213,0.43345,2307.0,2306.8,0.43347]
[1726581262414,0.43343,2307.1,2306.6,1.6528]
[1726581262708,0.43344,2307.0,2306.9,0.43346]
[1726581262905,0.43343,2307.1,2306.6,1.6528]
[1726581263209,4.29128,2307.3,2306.7,1.08374]
[1726581263210,3.2078,2307.3,2306.7,1.08374]
[1726581263414,0.43341,2307.2,2307.0,0.43342]
[1726581263616,3.2078,2307.3,2307.2,0.4334]
[1726581264005,3.2078,2307.3,2307.2,4.7678]
[1726581264310,3.2078,2307.3,2307.2,0.4334]
[1726581265515,3.64118,2307.3,2307.2,0.4334]
[1726581265715,3.2078,2307.3,2307.2,0.4334]
[1726581266211,0.4334,2307.2,2307.1,1.6495]
[1726581266816,3.64119,2307.3,2307.2,0.4334]
[1726581267112,3.6412,2307.3,2307.1,2.08291]
[1726581267319,0.4334,2307.2,2307.1,2.08291]
[1726581267711,3.2078,2307.3,2307.2,1.51691]
[1726581267911,3.64113,2307.6,2307.5,0.43334]
[1726581268107,0.43336,2307.4,2307.3,0.43337]
[1726581268610,0.43334,2307.5,2307.3,0.43337]
[1726581268812,3.2078,2307.6,2307.3,0.43337]
[1726581268813,0.43336,2307.4,2307.3,0.43337]
[1726581269318,3.2078,2307.6,2307.3,0.43337]
[1726581269511,3.2078,2307.6,2307.1,1.6495]
[1726581269712,0.43336,2307.5,2307.4,0.43336]
[1726581270007,3.2078,2307.6,2307.5,0.43334]
[1726581270206,3.2078,2307.6,2307.4,0.43335]
[1726581270403,0.43335,2307.5,2307.4,0.43336]
[1726581270603,0.43335,2307.5,2307.1,2.73304]
[1726581270604,1.08336,2307.5,2307.1,1.6495]
[1726581270812,0.4334,2307.2,2307.1,2.0829]
[1726581271005,3.33,2307.4,2306.7,5.17572]
[1726581271006,4.29127,2307.3,2306.7,5.17572]
[1726581271206,4.29127,2307.3,2306.8,2.78678]
[1726581271207,0.43341,2307.2,2306.8,2.78678]
[1726581271407,0.43342,2307.1,2307.0,0.43342]
[1726581271617,4.29127,2307.3,2306.8,1.7031]
[1726581271915,3.2078,2307.3,2306.8,1.7031]
[1726581272412,0.4334,2307.2,2306.8,1.7031]
[1726581272817,3.2078,2307.3,2306.8,1.7031]
[1726581272818,4.29128,2307.3,2307.0,0.43343]
[1726581273019,0.43341,2307.2,2307.1,0.43342]
[1726581273407,0.43342,2307.1,2307.0,0.43343]
[1726581273815,0.43341,2307.2,2307.1,0.43342]
[1726581274011,0.43341,2307.2,2307.0,0.43342]
[1726581274210,0.43341,2307.2,2307.1,0.43342]
[1726581274410,3.64119,2307.3,2307.2,0.4334]
[1726581274606,3.64113,2307.6,2307.0,1.0836]
[1726581274814,0.43334,2307.5,2307.4,0.43335]
[1726581275314,0.43334,2307.6,2307.5,0.43334]
[1726581275520,0.846,2307.8,2307.2,1.08349]
[1726581275710,0.43331,2307.7,2307.3,1.6387]
[1726581275908,3.33,2308.3,2307.6,3.2078]
[1726581276129,0.43323,2308.2,2308.0,0.43324]
[1726581276318,6.89422,2308.5,2307.8,0.8302]
[1726581276514,0.43321,2308.3,2307.8,1.702]
[1726581276718,6.89422,2308.5,2307.8,1.702]
[1726581276719,0.43321,2308.2,2307.8,1.702]
[1726581276915,6.89422,2308.5,2308.1,0.43323]
[1726581277121,0.43324,2308.1,2308.0,0.43325]
[1726581277615,0.43324,2308.1,2307.9,0.43325]
[1726581277817,0.43324,2308.1,2308.0,0.43325]
[1726581278124,1.08294,2308.4,2308.0,0.43324]
[1726581278125,0.43322,2308.2,2308.0,0.43324]
[1726581279123,0.43324,2308.1,2307.9,0.43326]
[1726581279425,3.64102,2308.2,2308.0,0.43325]
[1726581279624,0.43323,2308.1,2307.9,0.43325]
[1726581280318,3.64102,2308.2,2308.0,0.43325]
[1726581280516,0.43326,2308.0,2307.8,2.13528]
[1726581280819,0.43331,2307.7,2307.5,0.43333]
[1726581281015,0.43332,2307.7,2307.5,0.43334]
[1726581281419,4.29098,2307.9,2307.4,0.43335]
[1726581281420,0.43334,2307.6,2307.4,0.43335]
[1726581281622,4.41322,2307.8,2307.4,0.43335]
[1726581281923,3.33,2307.5,2307.0,4.092]
[1726581282119,3.33,2307.5,2306.8,6.86017]
[1726581282420,0.43341,2307.2,2307.0,0.43343]
[1726581282814,0.43339,2307.3,2307.0,0.43343]
[1726581283017,4.41339,2307.5,2307.0,0.43343]
[1726581283225,3.2078,2307.3,2306.8,2.5687]
[1726581283528,0.43345,2307.0,2306.8,1.7352]
[1726581283823,0.43346,2306.9,2306.8,1.7352]
[1726581284221,3.2078,2306.9,2306.4,0.43353]
[1726581284424,0.43349,2306.7,2306.4,0.43353]
[1726581284617,0.43351,2306.7,2306.4,0.43355]
[1726581284821,6.5378,2306.9,2306.3,5.7858]
[1726581285128,0.4335,2306.7,2306.4,0.43354]
[1726581285327,0.43349,2306.8,2306.5,0.43353]
[1726581285526,6.5378,2306.9,2306.3,1.6938]
[1726581285824,6.97127,2306.9,2306.3,1.6938]
[1726581286026,0.43348,2306.8,2306.5,0.43352]
[1726581286214,0.43353,2306.6,2306.3,2.12736]
[1726581286417,6.5378,2306.9,2306.4,0.43355]
[1726581286620,0.43352,2306.6,2306.3,2.12736]
[1726581287327,0.43354,2306.5,2306.3,0.8491]
[1726581287627,0.43352,2306.6,2306.3,1.28267]
[1726581288022,1.08369,2306.8,2306.3,1.28267]
[1726581288219,3.2078,2306.6,2306.2,0.828]
[1726581288427,0.43357,2306.3,2306.2,0.828]
[1726581288724,0.43357,2306.3,2306.1,3.2078]
[1726581288920,0.43357,2306.3,2306.1,3.6414]
[1726581289127,0.43356,2306.4,2306.2,0.43358]
[1726581289433,0.43356,2306.4,2306.1,3.64139]
[1726581290425,0.43356,2306.4,2306.1,3.2078]
[1726581290627,3.2078,2307.0,2306.2,4.336]
[1726581290826,0.43347,2306.9,2306.6,3.2078]
[1726581291032,3.64124,2307.0,2306.8,0.43347]
[1726581291233,2.75198,2307.3,2306.9,3.2078]
[1726581291429,0.43346,2306.9,2306.8,3.2078]
[1726581291734,1.6685,2307.3,2306.8,3.64127]
[1726581291935,0.43344,2307.0,2306.8,3.64127]
[1726581292228,0.43344,2307.1,2306.8,3.64126]
[1726581292527,0.43344,2307.0,2306.8,0.43347]
[1726581292729,0.43344,2307.0,2306.9,0.43346]
[1726581292931,0.43344,2307.0,2306.8,3.64126]
[1726581293126,0.43346,2306.9,2306.8,3.2078]
[1726581293327,0.43345,2307.0,2306.8,3.64127]
[1726581294530,0.43345,2307.0,2306.8,0.43347]
[1726581295032,0.43345,2307.0,2306.7,1.7595]
[1726581295229,1.08355,2307.1,2306.7,1.7595]
[1726581295546,6.5378,2307.2,2306.7,1.7595]
[1726581295840,0.43347,2306.9,2306.7,2.19298]
[1726581296837,0.43347,2306.9,2306.8,0.43347]
[1726581297242,0.43342,2307.1,2306.8,0.43347]
[1726581297539,0.43346,2306.9,2306.8,0.43347]
[1726581298337,0.43344,2307.0,2306.9,0.43345]
[1726581300840,0.43346,2306.9,2306.7,1.7595]
[1726581301040,0.43346,2306.9,2306.8,0.43346]
[1726581301245,0.43346,2306.9,2306.7,1.7595]
[1726581301246,0.43344,2307.0,2306.9,0.43344]
[1726581301440,0.4334,2307.3,2307.2,0.43339]
[1726581301643,3.2078,2307.5,2307.0,1.08359]
[1726581301846,3.64115,2307.5,2307.4,0.43336]
[1726581302149,3.2078,2307.5,2307.4,0.43336]
[1726581302351,0.43338,2307.4,2307.3,0.43337]
[1726581302752,3.64116,2307.5,2307.4,0.43336]
[1726581302952,0.43337,2307.4,2307.3,0.43336]
[1726581303248,3.2078,2307.5,2307.4,0.43336]
[1726581303648,3.2078,2307.5,2307.3,0.43337]
[1726581303649,0.43338,2307.4,2307.3,0.43337]
[1726581303849,0.43338,2307.4,2307.0,0.43342]
[1726581303850,1.08346,2307.3,2307.0,0.43342]
[1726581304147,0.43343,2307.1,2307.0,0.43342]
[1726581304350,0.43343,2307.1,2306.7,2.86000332]
[1726581304351,3.33,2307.1,2306.7,0.8715]
[1726581304551,0.43346,2306.9,2306.8,0.43346]
[1726581304952,4.76867,2306.9,2306.8,0.43347]
[1726581305155,0.43341,2307.2,2307.1,0.43341]
[1726581305451,3.2078,2307.2,2306.9,0.43345]
[1726581305657,0.43345,2307.0,2306.9,0.43345]
[1726581305859,0.43347,2306.9,2306.8,0.43347]
[1726581306251,0.43344,2307.0,2306.9,0.43344]
[1726581306453,4.9101,2307.5,2306.9,3.2078]
[1726581306657,4.9101,2307.5,2307.4,0.43336]
[1726581306658,3.64115,2307.5,2307.4,0.43336]
[1726581306858,3.64115,2307.5,2307.0,2.8507]
[1726581306859,0.43338,2307.4,2307.3,0.43337]
[1726581307158,3.2078,2307.6,2307.1,1.08354]
[1726581307355,3.2078,2307.6,2307.3,0.43337]
[1726581307356,0.43337,2307.4,2307.3,0.43337]
[1726581307552,0.43337,2307.4,2307.2,0.8616]
[1726581307553,0.43335,2307.5,2307.4,0.43335]
[1726581308453,0.43337,2307.4,2307.3,0.43337]
[1726581308660,0.43338,2307.3,2307.2,1.29499]
[1726581308954,0.43338,2307.4,2307.3,0.43337]
[1726581309160,0.43337,2307.4,2307.3,0.43337]
[1726581309357,0.43333,2307.6,2307.5,0.43334]
[1726581309565,0.43333,2307.6,2307.5,0.43333]
[1726581309752,0.43335,2307.5,2307.4,0.43335]
[1726581310061,0.43334,2307.6,2307.5,0.43334]
[1726581310362,0.43334,2307.5,2307.4,0.43335]
[1726581310554,0.43336,2307.4,2307.3,0.43337]
[1726581310759,0.43338,2307.3,2307.2,0.8616]
[1726581310956,0.4334,2307.2,2307.1,3.2078]
[1726581311160,0.43342,2307.2,2307.0,0.8931]
[1726581311363,0.43341,2307.2,2307.1,0.43342]
[1726581311560,0.43341,2307.2,2307.0,0.8931]
[1726581311561,0.43342,2307.1,2307.0,1.32654]
[1726581311960,5.26785,2307.4,2307.0,0.8931]
[1726581312360,0.43339,2307.3,2307.2,0.4334]
[1726581312563,0.4334,2307.2,2307.1,0.43341]
[1726581312764,3.2078,2307.8,2307.0,0.8931]
[1726581312963,0.43331,2307.7,2307.6,0.43332]
[1726581313258,6.01832,2308.1,2307.4,0.8791]
[1726581313458,1.08318,2307.9,2307.4,0.8791]
[1726581313761,4.41328,2307.7,2307.1,5.20760332]
[1726581314068,0.43336,2307.5,2307.4,0.43336]
[1726581314256,1.08333,2307.6,2307.1,5.7881]
[1726581314460,1.08336,2307.5,2307.1,5.7881]
[1726581314767,0.43335,2307.5,2307.4,0.43335]
[1726581315168,0.43332,2307.6,2307.5,0.43334]
[1726581315467,3.33,2307.7,2307.4,0.43335]
[1726581315764,0.43334,2307.6,2307.5,0.43334]
[1726581316068,0.43331,2307.7,2307.6,0.43332]
[1726581316267,0.43331,2307.7,2307.6,0.43331]
[1726581316465,0.43333,2307.6,2307.5,0.43333]
[1726581316661,0.43331,2307.7,2307.6,0.43332]
[1726581317161,1.95619,2307.9,2307.3,1.08346]
[1726581317467,0.43331,2307.7,2307.6,0.43331]
[1726581317765,0.4333,2307.8,2307.6,0.43331]
[1726581317969,1.08319,2307.9,2307.6,0.43332]
[1726581318266,0.43332,2307.7,2307.6,0.43332]
[1726581318464,3.76331,2307.7,2307.1,6.84734]
[1726581318666,3.76331,2307.7,2307.6,0.43332]
[1726581319057,8.09691,2307.7,2307.6,0.43332]
[1726581319253,4.76691,2307.7,2307.6,0.43332]
[1726581319860,0.43331,2307.7,2307.6,0.43332]
[1726581320067,3.33,2308.0,2307.1,6.84734]
[1726581320267,0.43331,2307.7,2307.6,0.43331]
[1726581320467,0.4333,2307.8,2307.7,0.43329]
[1726581320663,0.43331,2307.7,2307.6,0.43331]
[1726581320858,3.33,2307.7,2307.1,6.84732]
[1726581321165,0.43331,2307.7,2307.6,0.43331]
[1726581322360,0.43334,2307.6,2307.5,0.43333]
[1726581322970,0.43332,2307.7,2307.6,0.43331]
[1726581324469,4.29103,2307.8,2307.7,0.43331]
[1726581324470,3.64109,2307.8,2307.7,0.43331]
[1726581324766,0.43332,2307.7,2307.6,0.43331]
[1726581325173,0.43332,2307.6,2307.5,1.28193]
[1726581325367,0.43332,2307.7,2307.6,0.43331]
[1726581326076,0.43332,2307.7,2307.4,0.43334]
[1726581326077,0.43334,2307.5,2307.4,0.43334]
[1726581326273,0.43338,2307.4,2307.3,0.43336]
[1726581327475,1.08357,2307.1,2306.7,5.87439332]
[1726581327669,0.43347,2306.8,2306.7,1.6336]
[1726581327976,3.14347,2306.8,2306.7,1.6336]
[1726581328363,2.71,2306.8,2306.7,1.6336]
[1726581328571,2.71,2306.8,2306.7,2.06709]
[1726581328876,3.14347,2306.8,2306.7,1.6336]
[1726581329275,2.71,2306.8,2306.7,2.06709]
[1726581329469,3.14345,2307.0,2306.7,2.06709]
[1726581329671,2.71,2306.8,2306.7,1.6336]
[1726581329867,4.29138,2307.1,2306.7,0.829]
[1726581330075,0.43346,2306.9,2306.7,1.26249]
[1726581330276,3.2078,2307.1,2306.8,0.43347]
[1726581330473,3.2078,2307.1,2306.7,1.26249]
[1726581330681,3.33,2306.9,2306.5,1.23812]
[1726581330975,0.43349,2306.7,2306.5,1.23813]
[1726581331168,0.43348,2306.8,2306.6,0.43351]
[1726581331364,0.4335,2306.7,2306.5,1.23812]
[1726581331670,0.43349,2306.8,2306.5,1.23812]
[1726581331871,3.33,2306.9,2306.6,0.43351]
[1726581332066,0.43344,2307.0,2306.7,0.43348]
[1726581332274,0.43346,2306.9,2306.7,0.43348]
[1726581332476,0.43345,2307.0,2306.8,0.43347]
[1726581332679,0.43346,2306.9,2306.7,0.43348]
[1726581332866,4.29139,2307.1,2306.5,1.23812]
[1726581333073,0.4335,2306.7,2306.5,1.23812]
[1726581333664,4.1403,2306.9,2306.6,0.4335]
[1726581333665,0.43349,2306.8,2306.6,0.4335]
[1726581333867,0.43347,2306.8,2306.5,1.23812]
[1726581334068,0.43348,2306.8,2306.6,0.4335]
[1726581334679,0.43347,2306.9,2306.7,0.43348]
[1726581334871,0.43347,2306.8,2306.7,0.43348]
[1726581335068,6.5378,2307.1,2306.5,0.8046]
[1726581335069,1.08361,2307.0,2306.6,0.4335]
[1726581335675,1.08361,2307.0,2306.5,1.23812]
[1726581335880,0.43349,2306.8,2306.6,0.4335]
[1726581336075,0.43349,2306.7,2306.6,0.4335]
[1726581336379,0.43349,2306.7,2306.5,1.23812]
[1726581336582,0.43349,2306.7,2306.6,0.43351]
[1726581336784,0.43349,2306.7,2306.5,0.8046]
[1726581336982,3.2078,2306.8,2306.5,1.23812]
[1726581337175,0.43351,2306.6,2306.5,1.23812]
[1726581337372,0.43351,2306.6,2306.5,0.43352]
[1726581337569,0.43353,2306.5,2306.4,0.8062]
[1726581337983,0.43353,2306.5,2306.4,1.23975]
[1726581338179,0.43353,2306.5,2306.4,0.8062]
[1726581339176,3.2078,2306.5,2306.2,0.43357]
[1726581339380,0.43357,2306.3,2306.1,3.2078]
[1726581339580,0.43358,2306.3,2306.1,3.64141]
[1726581339779,0.43359,2306.2,2306.1,3.2078]
[1726581340479,13.5438,2306.2,2305.8,1.13290332]
[1726581340679,0.4337,2305.7,2305.6,0.43369]
[1726581340878,0.43374,2305.4,2305.3,0.871]
[1726581341173,0.4338,2305.1,2304.9,1.13290332]
[1726581341382,0.4338,2305.1,2304.9,1.7663]
[1726581341778,4.3384,2305.0,2304.6,1.96190332]
[1726581341976,6.5378,2304.8,2304.4,0.8815]
[1726581342173,1.08487,2304.3,2304.0,1.13290332]
[1726581342375,3.33,2304.1,2303.7,1.31885]
[1726581342576,3.2078,2303.9,2303.7,0.8848]
[1726581342878,3.33,2304.1,2303.7,0.8848]
[1726581343073,3.2078,2304.2,2304.1,0.43398]
[1726581343275,6.5378,2304.5,2303.5,0.00707912]
[1726581343472,3.2078,2304.5,2303.8,1.0851]
[1726581343777,6.5378,2304.5,2303.7,6.65050284]
[1726581343972,6.5378,2304.5,2304.2,0.43395]
[1726581344178,6.5378,2304.5,2303.8,1.0851]
[1726581344381,2.16797,2306.2,2304.2,1.08488]
[1726581344382,3.2078,2305.2,2304.2,1.08488]
[1726581344584,3.2078,2305.2,2304.4,3.2078]
[1726581344881,3.2078,2305.2,2305.1,0.43379]
[1726581345276,3.2078,2305.2,2305.1,4.77219]
[1726581345477,3.2078,2305.2,2304.7,3.2078]
[1726581345783,3.2078,2305.2,2305.1,0.43379]
[1726581346186,0.585,2305.7,2305.1,4.3384]
[1726581346187,3.2078,2305.7,2305.1,4.3384]
[1726581346370,3.2078,2305.7,2305.0,1.08453]
[1726581346371,3.33,2305.8,2305.0,1.08453]
[1726581346575,3.33,2305.8,2305.1,0.8919]
[1726581346773,3.33,2305.8,2305.5,0.43371]
[1726581347076,3.76366,2305.8,2305.5,0.43371]
[1726581347379,3.76366,2305.8,2305.6,0.43369]
[1726581347380,3.33,2305.8,2305.6,0.43369]
[1726581347581,3.33,2305.8,2305.3,1.0844]
[1726581347787,3.64143,2306.0,2305.4,1.08435]
[1726581347991,3.2078,2306.0,2305.4,1.08435]
[1726581348189,3.64144,2306.0,2305.7,0.43367]
[1726581349182,3.33,2305.8,2305.6,0.43369]
[1726581349389,3.76366,2305.8,2305.6,0.43369]
[1726581349581,3.33,2305.8,2305.6,0.43369]
[1726581350488,3.33,2305.8,2305.2,1.724]
[1726581350692,3.33,2305.8,2305.7,0.43368]
[1726581350989,3.2078,2306.0,2305.2,1.724]
[1726581351176,3.76367,2305.8,2305.5,0.43371]
[1726581351375,3.76367,2305.8,2305.2,1.724]
[1726581351576,3.33,2305.8,2305.5,0.43371]
[1726581351782,3.33,2305.8,2305.7,0.43368]
[1726581351987,3.33,2305.8,2305.6,0.4337]
[1726581352287,3.33,2305.8,2305.6,0.43369]
[1726581352488,3.33,2305.8,2305.7,0.43368]
[1726581352784,3.2078,2306.0,2305.8,0.43365]
[1726581352983,3.2078,2306.0,2305.9,0.43364]
[1726581353187,1.91991,2306.4,2305.9,0.43364]
[1726581353188,8.1876,2306.4,2305.9,0.43364]
[1726581353381,6.5378,2306.1,2305.7,0.43367]
[1726581353580,3.76366,2305.8,2305.3,3.2078]
[1726581353792,3.33,2305.5,2305.2,1.724]
[1726581354086,6.5378,2305.5,2305.3,0.43374]
[1726581354391,6.97152,2305.5,2305.3,0.43375]
[1726581354686,6.5378,2305.5,2305.2,1.724]
[1726581354983,6.97153,2305.5,2305.3,0.43376]
[1726581355184,3.2078,2305.5,2305.4,0.43374]
[1726581355382,3.2078,2306.0,2305.7,0.43367]
[1726581355587,0.43365,2305.9,2305.8,0.43366]
[1726581355792,0.8138,2306.3,2305.3,3.2078]
[1726581355982,6.5378,2306.4,2306.1,0.43359]
[1726581356179,3.2078,2306.4,2305.8,1.08416]
[1726581356384,6.5378,2306.4,2306.1,0.4336]
[1726581356791,6.5378,2306.4,2305.8,0.8623]
[1726581356991,0.43358,2306.3,2306.0,0.43362]
[1726581357381,6.5378,2306.4,2305.8,0.8623]
[1726581357582,6.97136,2306.4,2306.1,0.43359]
[1726581358490,0.43357,2306.3,2306.1,0.43359]
[1726581358691,6.97136,2306.4,2306.1,0.43359]
[1726581358897,0.43357,2306.3,2306.1,0.43359]
[1726581359089,0.43357,2306.3,2306.0,0.43362]
[1726581359291,0.43357,2306.3,2305.8,0.8623]
[1726581359595,0.43357,2306.3,2306.0,0.43361]
[1726581359786,6.5378,2306.4,2306.0,0.43361]
[1726581359787,0.43359,2306.2,2306.0,0.43361]
[1726581360087,0.43358,2306.3,2305.8,0.8623]
[1726581360295,0.4336,2306.2,2305.8,0.8623]
[1726581360482,0.43359,2306.2,2306.0,0.43362]
[1726581360688,0.43358,2306.3,2306.1,0.4336]
[1726581360882,0.43357,2306.3,2306.1,0.4336]
[1726581361087,0.43359,2306.2,2306.0,0.43362]
[1726581361392,6.5378,2306.4,2305.8,0.8623]
[1726581361588,0.43359,2306.2,2306.0,0.43362]
[1726581362295,0.4336,2306.2,2306.0,0.43362]
[1726581362488,3.33,2306.1,2305.4,0.882]
[1726581362795,3.33,2306.1,2305.9,0.43364]
[1726581362796,4.61912,2306.1,2305.9,0.43364]
[1726581363091,0.43362,2306.0,2305.8,0.43365]
[1726581363391,3.76362,2306.1,2305.9,0.43363]
[1726581363696,0.43362,2306.0,2305.9,0.43363]
[1726581364490,0.43363,2306.0,2305.9,0.43363]
[1726581364791,3.76362,2306.1,2305.9,0.43363]
[1726581365290,0.43362,2306.0,2305.9,0.43363]
[1726581365497,0.43363,2306.0,2305.9,0.43364]
[1726581366596,0.43362,2306.0,2305.5,1.95159]
[1726581366898,0.43362,2306.0,2305.9,0.43364]
[1726581367793,3.33,2306.1,2305.5,1.95159]
[1726581367794,3.33,2306.1,2306.0,0.43362]
[1726581367998,4.29171,2306.4,2306.2,0.43357]
[1726581367999,0.43357,2306.3,2306.2,0.43357]
[1726581368198,6.97136,2306.4,2306.3,0.43357]
[1726581368496,0.43358,2306.3,2306.2,0.43357]
[1726581368692,6.5378,2306.4,2306.3,0.43357]
[1726581368891,6.97135,2306.4,2306.3,0.43357]
[1726581369497,6.5378,2306.4,2306.0,0.8192]
[1726581369688,0.43359,2306.2,2306.1,0.43358]
[1726581369898,0.43361,2306.1,2306.0,1.25282]
[1726581370299,0.43365,2305.9,2305.8,0.43365]
[1726581370596,3.2078,2306.4,2305.8,1.08416]
[1726581370898,0.43357,2306.3,2305.8,1.08416]
[1726581371199,3.2078,2306.4,2305.9,1.0841]
[1726581371388,3.2078,2306.4,2306.3,0.43357]
[1726581371589,4.1855,2306.6,2306.5,0.43353]
[1726581371590,4.61901,2306.6,2306.5,0.43353]
[1726581371792,0.43354,2306.5,2306.4,0.43354]
[1726581371995,4.1855,2306.6,2306.4,0.43354]
[1726581372194,0.43354,2306.5,2306.4,0.43354]
[1726581372395,0.43354,2306.5,2306.1,0.8187]
[1726581372396,4.1855,2306.6,2306.1,0.8187]
[1726581372698,4.1855,2306.6,2306.4,0.43355]
[1726581372699,0.43354,2306.5,2306.4,0.43355]
[1726581372997,5.2693,2306.6,2306.1,0.8187]
[1726581373193,3.76358,2306.3,2306.2,0.43358]
[1726581373393,3.33,2306.3,2306.2,0.43358]
[1726581373695,7.666,2306.3,2305.9,4.092]
[1726581373898,0.4336,2306.2,2305.8,0.8187]
[1726581374088,0.4336,2306.2,2306.1,0.43361]
[1726581374295,3.76358,2306.3,2306.1,0.43361]
[1726581374488,3.33,2306.3,2305.8,1.90285]
[1726581374690,3.76358,2306.3,2305.8,1.90285]
[1726581374895,3.2078,2306.5,2305.9,1.08412]
[1726581375193,0.43351,2306.6,2306.5,0.43352]
[1726581375392,6.5378,2307.2,2306.2,3.2078]
[1726581375690,4.1609,2307.2,2306.6,1.08379]
[1726581375895,1.08343,2307.4,2306.8,1.08367]
[1726581375896,3.76337,2307.4,2306.8,1.08367]
[1726581376095,3.76337,2307.4,2307.2,0.43339]
[1726581376297,3.76337,2307.4,2307.2,0.4334]
[1726581376504,3.33,2307.4,2306.9,1.6715]
[1726581376797,6.5378,2308.0,2307.5,0.43333]
[1726581377105,6.5378,2308.0,2307.4,0.43335]
[1726581377106,0.43331,2307.7,2307.4,0.43335]
[1726581377290,6.5378,2308.0,2307.0,1.0836]
[1726581377291,0.43329,2307.8,2307.0,1.0836]
[1726581377498,3.33,2308.0,2307.1,1.08355]
[1726581377695,6.5378,2308.0,2307.2,1.08351]
[1726581378003,3.33,2308.0,2307.7,0.4333]
[1726581378299,3.33,2308.0,2307.4,3.2078]
[1726581378500,3.33,2308.0,2307.0,1.08357]
[1726581378501,6.5378,2308.0,2307.0,3.2078]
[1726581378800,6.97106,2308.0,2307.6,0.43332]
[1726581379001,3.76326,2308.0,2307.6,0.43332]
[1726581379207,6.5378,2308.0,2307.1,0.8488]
[1726581379712,3.33,2307.7,2307.1,0.8488]
[1726581379894,0.43335,2307.5,2307.1,1.28221]
[1726581380204,0.43337,2307.4,2307.1,0.8488]
[1726581380412,0.43337,2307.4,2307.0,3.2078]
[1726581380413,0.43338,2307.3,2307.0,3.2078]
[1726581380608,0.43337,2307.4,2307.0,0.43343]
[1726581380803,6.5378,2307.5,2306.9,1.29684]
[1726581380998,0.43337,2307.4,2307.0,0.43343]
[1726581381205,6.5378,2307.5,2306.9,1.29685]
[1726581381399,6.5378,2307.2,2306.5,4.0483]
[1726581381608,3.33,2306.8,2306.6,0.4335]
[1726581381908,0.43345,2307.0,2306.6,0.4335]
[1726581382104,0.8511,2307.1,2306.5,0.8405]
[1726581382306,4.024,2307.5,2307.1,0.43341]
[1726581382507,3.2078,2307.5,2307.2,0.43339]
[1726581382701,3.2078,2307.5,2306.7,4.092]
[1726581382903,3.64114,2307.5,2306.8,0.8656]
[1726581383102,3.64114,2307.5,2306.5,7.3783]
[1726581383103,3.33,2307.0,2306.5,0.8405]
[1726581383303,3.33,2307.0,2306.7,0.43349]
[1726581383601,0.8162,2307.4,2306.5,0.8405]
[1726581383806,1.699,2307.4,2306.9,0.43345]
[1726581384313,1.31617,2307.4,2306.6,0.8641]
[1726581384515,1.31616,2307.4,2307.1,0.43342]
[1726581384712,0.8828,2307.4,2306.7,1.08374]
[1726581384924,0.8828,2307.4,2307.1,0.4334]
[1726581385217,0.8828,2307.4,2306.6,4.9561]
[1726581385516,0.43339,2307.3,2307.0,0.43344]
[1726581385719,0.43339,2307.3,2306.6,0.8641]
[1726581385720,3.33,2307.3,2306.6,0.8641]
[1726581385919,4.58519,2307.3,2307.0,0.43343]
[1726581386118,0.43341,2307.2,2306.9,0.43345]
[1726581386522,0.43341,2307.2,2306.8,0.43347]
[1726581386523,0.43343,2307.1,2306.8,0.43347]
[1726581386827,3.33,2307.3,2306.6,0.8641]
[1726581386828,6.5378,2307.3,2306.6,0.8641]
[1726581387023,0.43341,2307.2,2306.9,0.43344]
[1726581387318,0.43343,2307.1,2306.9,0.43346]
[1726581387524,0.43341,2307.2,2307.0,0.43344]
[1726581387731,0.43341,2307.2,2306.6,0.8641]
[1726581387732,3.33,2307.3,2306.9,0.43344]
[1726581387925,0.43342,2307.1,2306.9,0.43345]
[1726581388123,7.62129,2307.3,2306.6,0.8641]
[1726581388328,0.43343,2307.1,2306.8,0.43346]
[1726581388520,0.43343,2307.1,2306.6,0.8641]
[1726581388726,7.62129,2307.3,2306.7,0.43348]
[1726581388727,1.08354,2307.2,2306.7,0.43348]
[1726581389224,0.43345,2307.0,2306.8,0.43347]
[1726581389831,0.43344,2307.0,2306.8,0.43347]
[1726581390027,0.43343,2307.1,2306.8,0.43346]
[1726581390219,0.43341,2307.2,2306.5,5.1321]